Workbook

Sheet 2025年第三季度公益岗补贴明细
A1: 2025年第三季度公益性岗位人员岗位、社保补贴表
A2: 单位（章）：渑池县就业促进办公室
A3: 序号 | B3: 单 位 名 称 | C3: 姓 名 | D3: 岗位补贴 | F3: 社保补贴 | H3: 合 计 | J3: 备注
D4: 月补贴 | E4: 2025.7-9合计 | F4: 月补贴 | G4: 2025.7-9合计 | H4: 月合计 | I4: 2025.7-9合计
A5: 1 | B5: 渑池县城关镇黄河社区居民委员会 | C5: 安亚萍 | D5: 1050.00 | E5: 3150.00 | F5: 645.91 | G5: =F5*3 -> 1937.73 | H5: =D5+F5 -> 1695.91 | I5: =E5+G5 -> 5087.73 | J5: =I5 -> 5087.73
A6: 2 | B6: 渑池县城关镇海露社区居民委员会 | C6: 段素芳 | D6: 1050.00 | E6: 3150.00 | F6: 952.39 | G6: =F6*3 -> 2857.17 | H6: =D6+F6 -> 2002.39 | I6: =E6+G6 -> 6007.17 | J6: =I6 -> 6007.17
A7: 3 | B7: 韶阳街道 | C7: 王彩霞 | D7: 1050.00 | E7: 3150.00 | F7: 652.25 | G7: =F7*3 -> 1956.75 | H7: =D7+F7 -> 1702.25 | I7: =E7+G7 -> 5106.75 | J7: =SUM(I7:I23) -> 91357.95
A8: 4 | C8: 吴秀丽 | D8: 1050.00 | E8: 3150.00 | F8: 652.25 | G8: =F8*3 -> 1956.75 | H8: =D8+F8 -> 1702.25 | I8: =E8+G8 -> 5106.75
A9: 5 | C9: 刘丽芬 | D9: 1050.00 | E9: 3150.00 | F9: 652.25 | G9: =F9*3 -> 1956.75 | H9: =D9+F9 -> 1702.25 | I9: =E9+G9 -> 5106.75
A10: 6 | C10: 张丽娜 | D10: 1050.00 | E10: 3150.00 | F10: 958.73 | G10: =F10*3 -> 2876.19 | H10: =D10+F10 -> 2008.73 | I10: =E10+G10 -> 6026.19
A11: 7 | C11: 杜红花 | D11: 1050.00 | E11: 3150.00 | F11: 652.25 | G11: 1956.75 | H11: 1702.25 | I11: 5106.75
A12: 8 | C12: 杜秀丽 | D12: 1050.00 | E12: 3150.00 | F12: 652.25 | G12: 1956.75 | H12: 1702.25 | I12: 5106.75
A13: 9 | C13: 张春霞 | D13: 1050.00 | E13: 3150.00 | F13: 952.73 | G13: 2858.19 | H13: 2002.73 | I13: 6008.19
A14: 10 | C14: 王红芬 | D14: 1050.00 | E14: 3150.00 | F14: 652.25 | G14: 1956.75 | H14: 1702.25 | I14: 5106.75
A15: 11 | C15: 武红娟 | D15: 1050.00 | E15: 3150.00 | F15: 652.25 | G15: 1956.75 | H15: 1702.25 | I15: 5106.75
A16: 12 | C16: 刘建霞 | D16: 1050.00 | E16: 3150.00 | F16: 652.25 | G16: 1956.75 | H16: 1702.25 | I16: 5106.75
A17: 13 | C17: 李玲玲 | D17: 1050.00 | E17: 3150.00 | F17: 958.73 | G17: 2876.19 | H17: 2008.73 | I17: 6026.19
A18: 14 | C18: 张春丽 | D18: 1050.00 | E18: 3150.00 | F18: 652.25 | G18: 1956.75 | H18: 1702.25 | I18: 5106.75
A19: 15 | C19: 张留召 | D19: 1050.00 | E19: 3150.00 | F19: 952.73 | G19: 2858.19 | H19: 2002.73 | I19: 6008.19
A20: 16 | C20: 范玉涛 | D20: 1050.00 | E20: 3150.00 | F20: 652.25 | G20: 1956.75 | H20: 1702.25 | I20: 5106.75
A21: 17 | C21: 白香娥 | D21: 1050.00 | E21: 3150.00 | F21: 652.25 | G21: 1956.75 | H21: 1702.25 | I21: 5106.75
A22: 18 | C22: 武海华 | D22: 1050.00 | E22: 3150.00 | F22: 952.73 | G22: 2858.19 | H22: 2002.73 | I22: 6008.19
A23: 19 | C23: 张淑红 | D23: 1050.00 | E23: 3150.00 | F23: 652.25 | G23: 1956.75 | H23: 1702.25 | I23: 5106.75
A24: 20 | B24: 渑池县工业信息化和科技局 | C24: 王婧 | D24: 1050.00 | E24: 3150.00 | F24: 633.26 | G24: 1899.78 | H24: 1683.26 | I24: 5049.78 | J24: =SUM(I24:I26) -> 15149.34
A25: 21 | C25: 赵志勇 | D25: 1050.00 | E25: 3150.00 | F25: 633.26 | G25: 1899.78 | H25: 1683.26 | I25: 5049.78
A26: 22 | C26: 杨黎明 | D26: 1050.00 | E26: 3150.00 | F26: 633.26 | G26: 1899.78 | H26: 1683.26 | I26: 5049.78
A27: 24 | B27: 渑池县劳动就业培训中心 | C27: 郑炜 | D27: 1050.00 | E27: 3150.00 | F27: 645.91 | G27: =F27*3 -> 1937.73 | H27: =D27+F27 -> 1695.91 | I27: =E27+G27 -> 5087.73 | J27: =SUM(I27:I32) -> 31445.82
A28: 25 | C28: 张伟华 | D28: 1050.00 | E28: 3150.00 | F28: 952.39 | G28: 2857.17 | H28: 2002.39 | I28: 6007.17
A29: 26 | C29: 陈聪伟 | D29: 1050.00 | E29: 3150.00 | F29: 645.91 | G29: 1937.73 | H29: 1695.91 | I29: 5087.73
A30: 27 | C30: 刘卫民 | D30: 1050.00 | E30: 3150.00 | F30: 645.91 | G30: 1937.73 | H30: 1695.91 | I30: 5087.73
A31: 28 | C31: 毛巧霞 | D31: 1050.00 | E31: 3150.00 | F31: 645.91 | G31: 1937.73 | H31: 1695.91 | I31: 5087.73
A32: 29 | C32: 王卫峰 | D32: 1050.00 | E32: 3150.00 | F32: 645.91 | G32: 1937.73 | H32: 1695.91 | I32: 5087.73
A33: 30 | B33: 渑池县供销合作联社 | C33: 刘琳 | D33: 1050.00 | E33: 3150.00 | F33: 645.91 | G33: 1937.73 | H33: 1695.91 | I33: 5087.73 | J33: =SUM(I33:I34) -> 10175.46
A34: 31 | C34: 刘娜 | D34: 1050.00 | E34: 3150.00 | F34: 645.91 | G34: 1937.73 | H34: 1695.91 | I34: 5087.73
A35: 32 | B35: 渑池县韶州中学 | C35: 王 芳 | D35: 1050.00 | E35: 1050.00 | F35: 652.04 | G35: 652.04 | H35: 1702.04 | I35: 1702.04 | J35: =SUM(I35:I48) -> 66480.40
A36: 33 | C36: 刘光芬 | D36: 1050.00 | E36: 3150.00 | F36: 652.04 | G36: =F36*3 -> 1956.12 | H36: =D36+F36 -> 1702.04 | I36: =E36+G36 -> 5106.12
A37: 34 | C37: 贺海萍 | D37: 1050.00 | E37: 1050.00 | F37: 652.04 | G37: 652.04 | H37: 1702.04 | I37: 1702.04
A38: 35 | C38: 董爱荣 | D38: 1050.00 | E38: 3150.00 | F38: 952.52 | G38: 2857.56 | H38: 2002.52 | I38: 6007.56
A39: 36 | C39: 赵小霞 | D39: 1050.00 | E39: 3150.00 | F39: 652.04 | G39: 1956.12 | H39: 1702.04 | I39: 5106.12
A40: 37 | C40: 陈毅萍 | D40: 1050.00 | E40: 3150.00 | F40: 652.04 | G40: 1956.12 | H40: 1702.04 | I40: 5106.12
A41: 38 | C41: 锁欢红 | D41: 1050.00 | E41: 3150.00 | F41: 652.04 | G41: 1956.12 | H41: 1702.04 | I41: 5106.12
A42: 39 | C42: 赵丽红 | D42: 1050.00 | E42: 3150.00 | F42: 652.04 | G42: 1956.12 | H42: 1702.04 | I42: 5106.12
A43: 40 | C43: 曹艳敏 | D43: 1050.00 | E43: 3150.00 | F43: 652.04 | G43: 1956.12 | H43: 1702.04 | I43: 5106.12
A44: 41 | C44: 张晓 | D44: 1050.00 | E44: 3150.00 | F44: 652.04 | G44: =F44*3 -> 1956.12 | H44: 1702.04 | I44: 5106.12
A45: 42 | C45: 李昇侠 | D45: 1050.00 | E45: 3150.00 | F45: 652.04 | G45: 1956.12 | H45: 1702.04 | I45: 5106.12
A46: 43 | C46: 贾喜芳 | D46: 1050.00 | E46: 3150.00 | F46: 652.04 | G46: 1956.12 | H46: 1702.04 | I46: 5106.12
A47: 44 | C47: 冯凭 | D47: 1050.00 | E47: 3150.00 | F47: 652.04 | G47: 1956.12 | H47: 1702.04 | I47: 5106.12
A48: 45 | C48: 常雪霞 | D48: 1050.00 | E48: 3150.00 | F48: 952.52 | G48: 2857.56 | H48: 2002.52 | I48: 6007.56
A49: 46 | B49: 渑池县农业农村局 | C49: 王冬梅 | D49: 1050.00 | E49: 3150.00 | F49: 633.26 | G49: 1899.78 | H49: 1683.26 | I49: 5049.78 | J49: =SUM(I49:I52) -> 20235.18
A50: 47 | C50: 崔鲜琴 | D50: 1050.00 | E50: 3150.00 | F50: 639.27 | G50: 1917.81 | H50: 1689.27 | I50: 5067.81
A51: 48 | C51: 董关香 | D51: 1050.00 | E51: 3150.00 | F51: 639.27 | G51: 1917.81 | H51: 1689.27 | I51: 5067.81
A52: 50 | C52: 王伟民 | D52: 1050.00 | E52: 3150.00 | F52: 633.26 | G52: =F52*3 -> 1899.78 | H52: =D52+F52 -> 1683.26 | I52: =E52+G52 -> 5049.78
A53: 51 | B53: 河南省渑池县工商业联合会 | C53: 安丽 | D53: 1050.00 | E53: 3150.00 | F53: 952.39 | G53: 2857.17 | H53: 2002.39 | I53: 6007.17 | J53: =SUM(I53:I54) -> 11094.90
A54: 52 | C54: 贺华玲 | D54: 1050.00 | E54: 3150.00 | F54: 645.91 | G54: 1937.73 | H54: 1695.91 | I54: 5087.73
A55: 53 | B55: 渑池县发展和改革委员会 | C55: 王二建 | D55: 1050.00 | E55: 3150.00 | F55: 633.26 | G55: 1899.78 | H55: 1683.26 | I55: 5049.78 | J55: =I55 -> 5049.78
A56: 54 | B56: 渑池县洪阳镇人民政府 | C56: 李宁 | D56: 1050.00 | E56: 3150.00 | F56: 633.26 | G56: 1899.78 | H56: 1683.26 | I56: 5049.78 | J56: =I56 -> 5049.78
A57: 55 | B57: 渑池县张村镇人民政府 | C57: 吴海霞 | D57: 1050.00 | E57: 3150.00 | F57: 952.52 | G57: 2857.56 | H57: 2002.52 | I57: 6007.56 | J57: =SUM(I57:I58) -> 12015.12
A58: 56 | C58: 袁丽恒 | D58: 1050.00 | E58: 3150.00 | F58: 952.52 | G58: 2857.56 | H58: 2002.52 | I58: 6007.56
A59: 57 | B59: 渑池县档案馆 | C59: 赵姣玲 | D59: 1050.00 | E59: 3150.00 | F59: 933.74 | G59: 2801.22 | H59: 1983.74 | I59: 5951.22 | J59: =SUM(I59:I63) -> 27953.22
A60: 58 | C60: 陈建芬 | D60: 1050.00 | E60: 3150.00 | F60: 633.26 | G60: 1899.78 | H60: 1683.26 | I60: 5049.78
A61: 59 | C61: 上官爱霞 | D61: 1050.00 | E61: 3150.00 | F61: 633.26 | G61: 1899.78 | H61: 1683.26 | I61: 5049.78
A62: 60 | C62: 韩玉娜 | D62: 1050.00 | E62: 3150.00 | F62: 933.74 | G62: 2801.22 | H62: 1983.74 | I62: 5951.22
A63: 61 | C63: 沈伟华 | D63: 1050.00 | E63: 3150.00 | F63: 933.74 | G63: 2801.22 | H63: 1983.74 | I63: 5951.22
A64: 62 | B64: 渑池县尚德小学 | C64: 史俊风 | D64: 1050.00 | E64: 3150.00 | F64: 633.26 | G64: =F64*3 -> 1899.78 | H64: =D64+F64 -> 1683.26 | I64: =E64+G64 -> 5049.78 | J64: =SUM(I64:I70) -> 38052.78
A65: 63 | C65: 熊玉红 | D65: 1050.00 | E65: 3150.00 | F65: 633.26 | G65: 1899.78 | H65: 1683.26 | I65: 5049.78
A66: 64 | C66: 方改荣 | D66: 1050.00 | E66: 3150.00 | F66: 633.26 | G66: 1899.78 | H66: 1683.26 | I66: 5049.78
A67: 65 | C67: 邓海丽 | D67: 1050.00 | E67: 3150.00 | F67: 633.26 | G67: 1899.78 | H67: 1683.26 | I67: 5049.78
A68: 66 | C68: 徐慧芳 | D68: 1050.00 | E68: 3150.00 | F68: 933.74 | G68: 2801.22 | H68: 1983.74 | I68: 5951.22
A69: 67 | C69: 董晓丽 | D69: 1050.00 | E69: 3150.00 | F69: 933.74 | G69: 2801.22 | H69: 1983.74 | I69: 5951.22
A70: 68 | C70: 董艳霞 | D70: 1050.00 | E70: 3150.00 | F70: 933.74 | G70: 2801.22 | H70: 1983.74 | I70: 5951.22
A71: 69 | B71: 城关镇中心学校 | C71: 张鹏英 | D71: 1050.00 | E71: 1050.00 | F71: 633.26 | G71: 633.26 | H71: 1683.26 | I71: 1683.26 | J71: =SUM(I71:I82) -> 59033.72
A72: 70 | C72: 李春霞 | D72: 1050.00 | E72: 3150.00 | F72: 633.26 | G72: =F72*3 -> 1899.78 | H72: =D72+F72 -> 1683.26 | I72: =E72+G72 -> 5049.78
A73: 71 | C73: 曹风梅 | D73: 1050.00 | E73: 3150.00 | F73: 933.74 | G73: 2801.22 | H73: 1983.74 | I73: 5951.22
A74: 72 | C74: 李英敏 | D74: 1050.00 | E74: 3150.00 | F74: 633.26 | G74: 1899.78 | H74: 1683.26 | I74: 5049.78
A75: 73 | C75: 娄群红 | D75: 1050.00 | E75: 3150.00 | F75: 633.26 | G75: 1899.78 | H75: 1683.26 | I75: 5049.78
A76: 74 | C76: 李娜 | D76: 1050.00 | E76: 3150.00 | F76: 933.74 | G76: 2801.22 | H76: 1983.74 | I76: 5951.22
A77: 75 | C77: 李红霞 | D77: 1050.00 | E77: 3150.00 | F77: 633.26 | G77: 1899.78 | H77: 1683.26 | I77: 5049.78
A78: 76 | C78: 郭丽娜 | D78: 1050.00 | E78: 3150.00 | F78: 633.26 | G78: 1899.78 | H78: 1683.26 | I78: 5049.78
A79: 77 | C79: 杨鑫 | D79: 1050.00 | E79: 3150.00 | F79: 633.26 | G79: 1899.78 | H79: 1683.26 | I79: 5049.78
A80: 78 | C80: 史军伟 | D80: 1050.00 | E80: 3150.00 | F80: 633.26 | G80: 1899.78 | H80: 1683.26 | I80: 5049.78
A81: 79 | C81: 刘育英 | D81: 1050.00 | E81: 3150.00 | F81: 633.26 | G81: 1899.78 | H81: 1683.26 | I81: 5049.78
A82: 80 | C82: 陈玉莲 | D82: 1050.00 | E82: 3150.00 | F82: 633.26 | G82: 1899.78 | H82: 1683.26 | I82: 5049.78
A83: 81 | B83: 渑池县第二人民医院 | C83: 陈淑红 | D83: 1050.00 | E83: 3150.00 | F83: 639.27 | G83: 1917.81 | H83: 1689.27 | I83: 5067.81 | J83: =SUM(I83:I84) -> 11037.06
A84: 83 | C84: 许萍 | D84: 1050.00 | E84: 3150.00 | F84: 939.75 | G84: 2819.25 | H84: 1989.75 | I84: 5969.25
A85: 84 | B85: 渑池县文化广电和旅游局 | C85: 张富梅 | D85: 1050.00 | E85: 3150.00 | F85: 639.27 | G85: =F85*3 -> 1917.81 | H85: =D85+F85 -> 1689.27 | I85: 5067.81 | J85: =SUM(I85:I86) -> 11037.06
A86: 85 | C86: 李红 | D86: 1050.00 | E86: 3150.00 | F86: 939.75 | G86: 2819.25 | H86: 1989.75 | I86: 5969.25
A87: 86 | B87: 渑池县澧泉小学 | C87: 赵江霞 | D87: 1050.00 | E87: 3150.00 | F87: 645.91 | G87: 1937.73 | H87: 1695.91 | I87: =E87+G87 -> 5087.73 | J87: =I87 -> 5087.73
A88: 87 | B88: 渑池县曹端小学 | C88: 范爱红 | D88: 1050.00 | E88: 3150.00 | F88: 952.39 | G88: 2857.17 | H88: 2002.39 | I88: 6007.17 | J88: =SUM(I88:I90) -> 17102.07
A89: 88 | C89: 李红娟 | D89: 1050.00 | E89: 3150.00 | F89: 952.39 | G89: 2857.17 | H89: 2002.39 | I89: 6007.17
A90: 89 | C90: 赵何琴 | D90: 1050.00 | E90: 3150.00 | F90: 645.91 | G90: 1937.73 | H90: 1695.91 | I90: 5087.73
A91: 90 | B91: 渑池县尚德中学 | C91: 刘巧 | D91: 1050.00 | E91: 3150.00 | F91: 645.91 | G91: =F91*3 -> 1937.73 | H91: 1695.91 | I91: =E91+G91 -> 5087.73 | J91: =SUM(I91:I93) -> 13567.28
A92: 91 | C92: 岳玲玲 | D92: 1050.00 | E92: 3150.00 | F92: 645.91 | G92: 1937.73 | H92: 1695.91 | I92: 5087.73
A93: 92 | C93: 马转芳 | D93: 1050.00 | E93: 2100.00 | F93: 645.91 | G93: 1291.82 | H93: 1695.91 | I93: 3391.82
A94: 93 | B94: 渑池县商务局 | C94: 刘淑红 | D94: 1050.00 | E94: 3150.00 | F94: 633.26 | G94: =F94*3 -> 1899.78 | H94: =D94+F94 -> 1683.26 | I94: 5049.78 | J94: =SUM(I94:I97) -> 16832.60
A95: 94 | C95: 王建萍 | D95: 1050.00 | E95: 1050.00 | F95: 633.26 | G95: 633.26 | H95: 1683.26 | I95: =E95+G95 -> 1683.26
A96: 95 | C96: 张巧丽 | D96: 1050.00 | E96: 3150.00 | F96: 633.26 | G96: =F96*3 -> 1899.78 | H96: 1683.26 | I96: 5049.78
A97: 96 | C97: 李伟霞 | D97: 1050.00 | E97: 3150.00 | F97: 633.26 | G97: =F97*3 -> 1899.78 | H97: 1683.26 | I97: 5049.78
A98: 97 | B98: 渑池县退役军人事务局 | C98: 李红勤 | D98: 1050.00 | E98: 3150.00 | F98: 633.26 | G98: =F98*3 -> 1899.78 | H98: 1683.26 | I98: 5049.78 | J98: =SUM(I98:I100) -> 15149.34
A99: 98 | C99: 平二红 | D99: 1050.00 | E99: 3150.00 | F99: 633.26 | G99: =F99*3 -> 1899.78 | H99: 1683.26 | I99: 5049.78
A100: 99 | C100: 李文刚 | D100: 1050.00 | E100: 3150.00 | F100: 633.26 | G100: =F100*3 -> 1899.78 | H100: 1683.26 | I100: 5049.78
A101: 100 | B101: 渑池县社会医疗保险中心 | C101: 胡孟芳 | D101: 1050.00 | E101: 2100.00 | F101: 952.39 | G101: 1904.78 | H101: 2002.39 | I101: =E101+G101 -> 4004.78 | J101: =SUM(I101:I107) -> 39128.36
A102: 101 | C102: 宋海平 | D102: 1050.00 | E102: 3150.00 | F102: 645.91 | G102: =F102*3 -> 1937.73 | H102: =D102+F102 -> 1695.91 | I102: 5087.73
A103: 102 | C103: 王新敏 | D103: 1050.00 | E103: 3150.00 | F103: 952.39 | G103: 2857.17 | H103: 2002.39 | I103: 6007.17
A104: 103 | C104: 张丽娟 | D104: 1050.00 | E104: 3150.00 | F104: 952.39 | G104: 2857.17 | H104: 2002.39 | I104: 6007.17
A105: 104 | C105: 杨风霞 | D105: 1050.00 | E105: 3150.00 | F105: 952.39 | G105: 2857.17 | H105: 2002.39 | I105: 6007.17
A106: 105 | C106: 王彩霞 | D106: 1050.00 | E106: 3150.00 | F106: 952.39 | G106: 2857.17 | H106: 2002.39 | I106: 6007.17
A107: 106 | C107: 姚丽娜 | D107: 1050.00 | E107: 3150.00 | F107: 952.39 | G107: 2857.17 | H107: 2002.39 | I107: 6007.17
A108: 107 | B108: 渑池县市场监督管理局 | C108: 王静 | D108: 1050.00 | E108: 3150.00 | F108: 952.39 | G108: 2857.17 | H108: 2002.39 | I108: 6007.17 | J108: =SUM(I108:I113) -> 32365.26
A109: 108 | C109: 王芳 | D109: 1050.00 | E109: 3150.00 | F109: 645.91 | G109: =F109*3 -> 1937.73 | H109: =D109+F109 -> 1695.91 | I109: =E109+G109 -> 5087.73
A110: 109 | C110: 芮温雅 | D110: 1050.00 | E110: 3150.00 | F110: 952.39 | G110: 2857.17 | H110: 2002.39 | I110: 6007.17
A111: 110 | C111: 李二霞 | D111: 1050.00 | E111: 3150.00 | F111: 645.91 | G111: 1937.73 | H111: 1695.91 | I111: 5087.73
A112: 111 | C112: 衡丽丽 | D112: 1050.00 | E112: 3150.00 | F112: 645.91 | G112: 1937.73 | H112: 1695.91 | I112: 5087.73
A113: 112 | C113: 上官静 | D113: 1050.00 | E113: 3150.00 | F113: 645.91 | G113: 1937.73 | H113: 1695.91 | I113: 5087.73
A114: 113 | B114: 渑池县劳动保障监察大队 | C114: 胡建华 | D114: 1050.00 | E114: 3150.00 | F114: 933.74 | G114: 2801.22 | H114: 1983.74 | I114: 5951.22 | J114: =SUM(I114:I118) -> 25488.14
A115: 114 | C115: 韩晓莉 | D115: 1050.00 | E115: 3150.00 | F115: 933.74 | G115: 2801.22 | H115: 1983.74 | I115: 5951.22
A116: 115 | C116: 陈明伟 | D116: 1050.00 | E116: 3150.00 | F116: 933.74 | G116: 2801.22 | H116: 1983.74 | I116: 5951.22
A117: 116 | C117: 邵宏武 | D117: 1050.00 | E117: 3150.00 | F117: 933.74 | G117: 2801.22 | H117: 1983.74 | I117: 5951.22
A118: 117 | C118: 王海丽 | D118: 1050.00 | E118: =D118*1 -> 1050.00 | F118: 633.26 | G118: =F118*1 -> 633.26 | H118: 1683.26 | I118: 1683.26
A119: 118 | B119: 三门峡渑池县中医院编外人员户 | C119: 张彦云 | D119: 1050.00 | E119: 3150.00 | F119: 645.91 | G119: =F119*3 -> 1937.73 | H119: 1604.85 | I119: 5087.73 | J119: =I119 -> 5087.73
A120: 119 | B120: 渑池县煤炭发展中心 | C120: 姚艳琴 | D120: 1050.00 | E120: 2100.00 | F120: 633.26 | G120: 1266.52 | H120: =F120+D120 -> 1683.26 | I120: 3366.52 | J120: =I120 -> 3366.52
A121: 120 | B121: 中共渑池县委党史和地方史志研究室 | C121: 郭艳艳 | D121: 1050.00 | E121: 3150.00 | F121: 639.27 | G121: =F121*3 -> 1917.81 | H121: =D121+F121 -> 1689.27 | I121: 5067.81 | J121: =I121 -> 5067.81
A122: 121 | B122: 渑池县水利局 | C122: 赵年霞 | D122: 1050.00 | E122: 3150.00 | F122: 633.26 | G122: 1899.78 | H122: =D122+F122 -> 1683.26 | I122: 5049.78 | J122: =SUM(I122:I124) -> 12684.26
A123: 122 | C123: 董红霞 | D123: 1050.00 | E123: 1050.00 | F123: 633.26 | G123: 633.26 | H123: =D123+F123 -> 1683.26 | I123: 1683.26
A124: 123 | C124: 蒋艳敏 | D124: 1050.00 | E124: 3150.00 | F124: 933.74 | G124: 2801.22 | H124: 1604.85 | I124: 5951.22
A125: 124 | B125: 渑池县第二高级中学 | C125: 陈娜 | D125: 1050.00 | E125: 3150.00 | F125: 952.39 | G125: 2857.17 | H125: =D125+F125 -> 2002.39 | I125: 6007.17 | J125: =SUM(I125:I126) -> 11094.90
A126: 125 | C126: 李新红 | D126: 1050.00 | E126: 3150.00 | F126: 645.91 | G126: 1937.73 | H126: =F126+D126 -> 1695.91 | I126: 5087.73
A127: 126 | B127: 渑池县职业中等专业学校 | C127: 张听希 | D127: 1050.00 | E127: 3150.00 | F127: 645.91 | G127: 1937.73 | H127: =D127+F127 -> 1695.91 | I127: 5087.73 | J127: =I127 -> 5087.73
A128: 127 | B128: 渑池县尚德幼儿园 | C128: 杨玉风 | D128: 1050.00 | E128: 3150.00 | F128: 645.91 | G128: 1937.73 | H128: =D128+F128 -> 1695.91 | I128: 5087.73 | J128: =SUM(I128:I130) -> 15263.19
A129: 128 | C129: 关小翠 | D129: 1050.00 | E129: 3150.00 | F129: 645.91 | G129: 1937.73 | H129: =D129+F129 -> 1695.91 | I129: 5087.73
A130: 129 | C130: 赵伟芳 | D130: 1050.00 | E130: 3150.00 | F130: 645.91 | G130: 1937.73 | H130: =D130+F130 -> 1695.91 | I130: 5087.73
A131: 130 | B131: 渑池县县直中学 | C131: 刘玲 | D131: 1050.00 | E131: 3150.00 | F131: 652.04 | G131: =F131*3 -> 1956.12 | H131: =D131+F131 -> 1702.04 | I131: =E131+G131 -> 5106.12 | J131: =SUM(I131:I142) -> 60236.76
A132: 131 | C132: 沈金萍 | D132: 1050.00 | E132: 3150.00 | F132: 652.04 | G132: 1956.12 | H132: 1702.04 | I132: 5106.12
A133: 132 | C133: 上官润芳 | D133: 1050.00 | E133: 3150.00 | F133: 652.04 | G133: 1956.12 | H133: 1702.04 | I133: 5106.12
A134: 133 | C134: 张丽萍 | D134: 1050.00 | E134: 3150.00 | F134: 958.52 | G134: 2875.56 | H134: 2008.52 | I134: 6025.56
A135: 134 | C135: 上官晓丽 | D135: 1050.00 | E135: 3150.00 | F135: 652.04 | G135: 1956.12 | H135: 1702.04 | I135: 5106.12
A136: 135 | C136: 王晓丽 | D136: 1050.00 | E136: 3150.00 | F136: 652.04 | G136: 1956.12 | H136: 1702.04 | I136: 5106.12
A137: 136 | C137: 王伟芳 | D137: 1050.00 | E137: 3150.00 | F137: 652.04 | G137: 1956.12 | H137: 1702.04 | I137: 5106.12
A138: 137 | C138: 张燕 | D138: 1050.00 | E138: 3150.00 | F138: 652.04 | G138: 1956.12 | H138: 1702.04 | I138: 5106.12
A139: 138 | C139: 赵玉京 | D139: 1050.00 | E139: 3150.00 | F139: 0.00 | G139: 0.00 | H139: 0.00 | I139: 3150.00
A140: 139 | C140: 王建新 | D140: 1050.00 | E140: 3150.00 | F140: 652.04 | G140: =F140*3 -> 1956.12 | H140: =D140+F140 -> 1702.04 | I140: 5106.12
A141: 140 | C141: 董丽霞 | D141: 1050.00 | E141: 3150.00 | F141: 652.04 | G141: =F141*3 -> 1956.12 | H141: =D141+F141 -> 1702.04 | I141: 5106.12
A142: 141 | C142: 徐彩霞 | D142: 1050.00 | E142: 3150.00 | F142: 652.04 | G142: =F142*3 -> 1956.12 | H142: =D142+F142 -> 1702.04 | I142: =E142+G142 -> 5106.12
A143: 142 | B143: 渑池县城乡居民养老和社会工伤保险中心 | C143: 杨艳华 | D143: 1050.00 | E143: 3150.00 | F143: 952.39 | G143: 2857.17 | H143: 2002.39 | I143: 6007.17 | J143: =SUM(I143:I147) -> 29116.41
A144: 143 | C144: 轩秋华 | D144: 1050.00 | E144: 3150.00 | F144: 952.39 | G144: 2857.17 | H144: 2002.39 | I144: 6007.17
A145: 144 | C145: 李红 | D145: 1050.00 | E145: 3150.00 | F145: 645.91 | G145: 1937.73 | H145: 1695.91 | I145: 5087.73
A146: 145 | C146: 张永珍 | D146: 1050.00 | E146: 3150.00 | F146: 952.39 | G146: 2857.17 | H146: 2002.39 | I146: 6007.17
A147: 146 | C147: 赵静 | D147: 1050.00 | E147: 3150.00 | F147: 952.39 | G147: 2857.17 | H147: 2002.39 | I147: 6007.17
A148: 147 | B148: 渑池县仰韶幼儿园 | C148: 高鹏 | D148: 1050.00 | E148: 3150.00 | F148: 652.04 | G148: =F148*3 -> 1956.12 | H148: =D148+F148 -> 1702.04 | I148: =E148+G148 -> 5106.12 | J148: =I148 -> 5106.12
A149: 148 | B149: 中共渑池县委组织部 | C149: 赵海荣 | D149: 1050.00 | E149: 3150.00 | F149: 645.91 | G149: 1937.73 | H149: 1695.91 | I149: 5087.73 | J149: 5087.73
A150: 149 | B150: 中国共产主义青年团渑池县委员会 | C150: 张新芳 | D150: 1050.00 | E150: 3150.00 | F150: 652.04 | G150: 1956.12 | H150: 1702.04 | I150: 5106.12 | J150: 5106.12
A151: 150 | B151: 渑池县工人技术考核委员会 | C151: 翟小静 | D151: 1050.00 | E151: 3150.00 | F151: 952.39 | G151: 2857.17 | H151: 2002.39 | I151: 6007.17 | J151: =SUM(I151:I153) -> 18021.51
A152: 151 | C152: 张希萍 | D152: 1050.00 | E152: 3150.00 | F152: 952.39 | G152: 2857.17 | H152: 2002.39 | I152: 6007.17
A153: 152 | C153: 赵芳霞 | D153: 1050.00 | E153: 3150.00 | F153: 952.39 | G153: 2857.17 | H153: 2002.39 | I153: 6007.17
A154: 153 | B154: 渑池县人力资源和社会保障局 | C154: 刘玉霞 | D154: 1050.00 | E154: 3150.00 | F154: 933.74 | G154: =F154*3 -> 2801.22 | H154: 1983.74 | I154: =E154+G154 -> 5951.22 | J154: =SUM(I154:I158) -> 28854.66
A155: 154 | C155: 李娜 | D155: 1050.00 | E155: 3150.00 | F155: 933.74 | G155: 2801.22 | H155: 1983.74 | I155: 5951.22
A156: 155 | C156: 聂玲霞 | D156: 1050.00 | E156: 3150.00 | F156: 633.26 | G156: 1899.78 | H156: 1683.26 | I156: 5049.78
A157: 156 | C157: 吕利平 | D157: 1050.00 | E157: 3150.00 | F157: 933.74 | G157: 2801.22 | H157: 1983.74 | I157: 5951.22
A158: 157 | C158: 孙鸿杰 | D158: 1050.00 | E158: 3150.00 | F158: 933.74 | G158: 2801.22 | H158: 1983.74 | I158: 5951.22
A159: 158 | B159: 渑池县人民防空办公室 | C159: 郑铁军 | D159: 1050.00 | E159: 3150.00 | F159: 645.91 | G159: 1937.73 | H159: 1604.85 | I159: 5087.73 | J159: =I159 -> 5087.73
A160: 159 | B160: 渑池县会盟幼儿园 | C160: 杜焕玲 | D160: 1050.00 | E160: 3150.00 | F160: 639.27 | G160: 1917.81 | H160: =D160+F160 -> 1689.27 | I160: =E160+G160 -> 5067.81 | J160: =I160 -> 5067.81
A161: 160 | B161: 渑池县残疾人联合会 | C161: 李丽 | D161: 1050.00 | E161: 3150.00 | F161: 652.04 | G161: =F161*3 -> 1956.12 | H161: =D161+F161 -> 1702.04 | I161: 5106.12 | J161: =SUM(I161:I163) -> 15318.36
A162: 161 | C162: 王新峰 | D162: 1050.00 | E162: 3150.00 | F162: 652.04 | G162: 1956.12 | H162: 1702.04 | I162: 5106.12
A163: 162 | C163: 马丽萍 | D163: 1050.00 | E163: 3150.00 | F163: 652.04 | G163: 1956.12 | H163: 1702.04 | I163: 5106.12
A164: 163 | B164: 渑池县道路运输管理局 | C164: 李森杰 | D164: 1050.00 | E164: 3150.00 | F164: 633.26 | G164: 1899.78 | H164: 1683.26 | I164: 5049.78 | J164: =I164 -> 5049.78
A165: 164 | B165: 渑池县会盟中学 | C165: 王伟萍 | D165: 1050.00 | E165: 3150.00 | F165: 639.27 | G165: =F165*3 -> 1917.81 | H165: =F165+D165 -> 1689.27 | I165: 5067.81 | J165: =SUM(I165:I166) -> 11037.06
A166: 165 | C166: 刘忠红 | D166: 1050.00 | E166: 3150.00 | F166: 939.75 | G166: 2819.25 | H166: 1989.75 | I166: 5969.25
A167: 166 | B167: 果园乡人民政府 | C167: 张淑华 | D167: 1050.00 | E167: 3150.00 | F167: 652.04 | G167: 1956.12 | H167: 1702.04 | I167: 5106.12 | J167: =I167 -> 5106.12
A168: 167 | B168: 渑池县果园乡人力资源社会保障服务所 | C168: 陈华 | D168: 1050.00 | E168: 3150.00 | F168: 645.91 | G168: 1937.73 | H168: =D168+F168 -> 1695.91 | I168: 5087.73 | J168: =SUM(I168:I169) -> 10175.46
A169: 168 | C169: 张娜 | D169: 1050.00 | E169: 3150.00 | F169: 645.91 | G169: 1937.73 | H169: =D169+F169 -> 1695.91 | I169: 5087.73
A170: 169 | B170: 新兴幼儿园 | C170: 赵改玲 | D170: 1050.00 | E170: 3150.00 | F170: 652.04 | G170: =F170*3 -> 1956.12 | H170: =F170+D170 -> 1702.04 | I170: 5106.12 | J170: =SUM(I170:I175) -> 30636.72
A171: 170 | C171: 上官卫玲 | D171: 1050.00 | E171: 3150.00 | F171: 652.04 | G171: 1956.12 | H171: 1702.04 | I171: 5106.12
A172: 171 | C172: 王永周 | D172: 1050.00 | E172: 3150.00 | F172: 652.04 | G172: 1956.12 | H172: 1702.04 | I172: 5106.12
A173: 172 | C173: 贾红鸽 | D173: 1050.00 | E173: 3150.00 | F173: 652.04 | G173: 1956.12 | H173: 1702.04 | I173: 5106.12
A174: 173 | C174: 上官俊玲 | D174: 1050.00 | E174: 3150.00 | F174: 652.04 | G174: 1956.12 | H174: 1702.04 | I174: 5106.12
A175: 174 | C175: 秦红梅 | D175: 1050.00 | E175: 3150.00 | F175: 652.04 | G175: 1956.12 | H175: 1702.04 | I175: 5106.12
A176: 175 | B176: 丽景小学 | C176: 任建芳 | D176: 1050.00 | E176: 3150.00 | F176: 639.27 | G176: =F176*3 -> 1917.81 | H176: =D176+F176 -> 1689.27 | I176: =E176+G176 -> 5067.81 | J176: =SUM(I176:I178) -> 16104.87
A177: 176 | C177: 上官海鹏 | D177: 1050.00 | E177: 3150.00 | F177: 639.27 | G177: 1917.81 | H177: 1689.27 | I177: 5067.81
A178: 177 | C178: 吕春霞 | D178: 1050.00 | E178: 3150.00 | F178: 939.75 | G178: 2819.25 | H178: 1989.75 | I178: 5969.25
A179: 178 | B179: 市场发展服务中心 | C179: 艾晓 | D179: 1050.00 | E179: 3150.00 | F179: 952.52 | G179: =F179*3 -> 2857.56 | H179: =D179+F179 -> 2002.52 | I179: 6007.56 | J179: =SUM(I179:I180) -> 11113.68
A180: 179 | C180: 王丽华 | D180: 1050.00 | E180: 3150.00 | F180: 652.04 | G180: 1956.12 | H180: 1702.04 | I180: 5106.12
A181: 180 | B181: 渑池县民族宗教和民营经济事务中心 | C181: 刘娜 | D181: 1050.00 | E181: 3150.00 | F181: 633.26 | G181: 1899.78 | H181: 1683.26 | I181: 5049.78 | J181: =I181 -> 5049.78
A182: 181 | B182: 第三小学 | C182: 卢金平 | D182: 1050.00 | E182: 3150.00 | F182: 939.75 | G182: =F182*3 -> 2819.25 | H182: =D182+F182 -> 1989.75 | I182: =H182*3 -> 5969.25 | J182: =SUM(I182:I184) -> 17907.75
A183: 182 | C183: 李静 | D183: 1050.00 | E183: 3150.00 | F183: 939.75 | G183: 2819.25 | H183: 1989.75 | I183: 5969.25
A184: 183 | C184: 董小辉 | D184: 1050.00 | E184: 3150.00 | F184: 939.75 | G184: 2819.25 | H184: 1989.75 | I184: 5969.25
A185: 184 | B185: 渑池县政务服务和大数据中心 | C185: 范玲玲 | D185: 1050.00 | E185: 3150.00 | F185: 639.27 | G185: =F185*3 -> 1917.81 | H185: =D185+F185 -> 1689.27 | I185: 5067.81 | J185: =SUM(I185:I187) -> 15203.43
A186: 185 | C186: 刘文环 | D186: 1050.00 | E186: 3150.00 | F186: 639.27 | G186: 1917.81 | H186: 1689.27 | I186: 5067.81
A187: 186 | C187: 李娜 | D187: 1050.00 | E187: 3150.00 | F187: 639.27 | G187: 1917.81 | H187: 1689.27 | I187: 5067.81
A188: 187 | B188: 渑池县机关事务中心 | C188: 段松霞 | D188: 1050.00 | E188: 3150.00 | F188: 639.27 | G188: =F188*3 -> 1917.81 | H188: =D188+F188 -> 1689.27 | I188: =E188+G188 -> 5067.81 | J188: =SUM(I188:I192) -> 26240.49
A189: 188 | C189: 李三云 | D189: 1050.00 | E189: 3150.00 | F189: 939.75 | G189: 2819.25 | H189: 1989.75 | I189: 5969.25
A190: 189 | C190: 王永华 | D190: 1050.00 | E190: 3150.00 | F190: 639.27 | G190: 1917.81 | H190: 1689.27 | I190: 5067.81
A191: 190 | C191: 王红霞 | D191: 1050.00 | E191: 3150.00 | F191: 639.27 | G191: 1917.81 | H191: 1689.27 | I191: 5067.81
A192: 191 | C192: 陈岳华 | D192: 1050.00 | E192: 3150.00 | F192: 639.27 | G192: 1917.81 | H192: 1689.27 | I192: 5067.81
A193: 192 | B193: 渑池县果元乡中心学校 | C193: 王书娜 | D193: 1050.00 | E193: 3150.00 | F193: 939.75 | G193: 2819.25 | H193: 1989.75 | I193: 5969.25 | J193: =SUM(I193) -> 5969.25
E194: =SUM(E5:E193) -> 579600.00 | G194: 405632.99 | I194: =SUM(I5:I193) -> 985232.99 | J194: =SUM(J5:J193) -> 985232.99
